[Event "Titled Tuesday Blitz July 25 Late 2023"]
[White "Gulamali, Kazim"]
[Black "Haydon, David L"]
[WhiteFideId "2024764"]
[BlackFideId "415405"]
[WhiteElo "2516"]
[BlackElo "2635"]
[Result "1/2-1/2"]
[Round "6"]
[TimeControl "180+2"]
[Date "2023.07.25"]
[WhiteClock "0:00:09"]
[BlackClock "0:00:54"]
[Board "40"]

1. e4 {[%clk 0:01:40]}  c6 {[%clk 0:02:57]} 2. d4 {[%clk 0:01:39]}  d5 {[%clk 0:02:57]} 3. f3 {[%clk 0:01:40]}  Nf6 {[%clk 0:02:56]} 4. e5 {[%clk 0:01:40]}  Nfd7 {[%clk 0:02:55]} 5. c3 {[%clk 0:01:37]}  e6 {[%clk 0:02:55]} 6. f4 {[%clk 0:01:36]}  c5 {[%clk 0:02:55]} 7. Nf3 {[%clk 0:01:37]}  Nc6 {[%clk 0:02:54]} 8. a3 {[%clk 0:01:33]}  Nb6 {[%clk 0:02:53]} 9. Bd3 {[%clk 0:01:31]}  g6 {[%clk 0:02:51]} 10. O-O {[%clk 0:01:16]}  Bd7 {[%clk 0:02:46]} 11. Qe2 {[%clk 0:01:14]}  cxd4 {[%clk 0:02:44]} 12. cxd4 {[%clk 0:01:14]}  Na5 {[%clk 0:02:44]} 13. Nc3 {[%clk 0:01:13]}  Nb3 {[%clk 0:02:43]} 14. Rb1 {[%clk 0:01:13]}  Nxc1 {[%clk 0:02:34]} 15. Rbxc1 {[%clk 0:01:14]}  a6 {[%clk 0:02:31]} 16. g4 {[%clk 0:00:40]}  h5 {[%clk 0:02:28]} 17. h3 {[%clk 0:00:41]}  hxg4 {[%clk 0:02:28]} 18. hxg4 {[%clk 0:00:41]}  Bh6 {[%clk 0:02:25]} 19. g5 {[%clk 0:00:41]}  Bg7 {[%clk 0:02:25]} 20. Kg2 {[%clk 0:00:41]}  Bc6 {[%clk 0:02:13]} 21. Rh1 {[%clk 0:00:41]}  O-O {[%clk 0:02:02]} 22. Nh2 {[%clk 0:00:38]}  Re8 {[%clk 0:01:50]} 23. Ng4 {[%clk 0:00:38]}  Re7 {[%clk 0:01:50]} 24. Nf6+ {[%clk 0:00:36]}  Kf8 {[%clk 0:01:50]} 25. Rh7 {[%clk 0:00:34]}  Rc7 {[%clk 0:01:46]} 26. Rch1 {[%clk 0:00:32]}  Nd7 {[%clk 0:01:24]} 27. Rxg7 {[%clk 0:00:28]}  Kxg7 {[%clk 0:01:24]} 28. Rh7+ {[%clk 0:00:28]}  Kf8 {[%clk 0:01:24]} 29. Rh8+ {[%clk 0:00:19]}  Ke7 {[%clk 0:01:24]} 30. Rxd8 {[%clk 0:00:20]}  Rxd8 {[%clk 0:01:24]} 31. Qe1 {[%clk 0:00:19]}  Rh8 {[%clk 0:01:21]} 32. Nd1 {[%clk 0:00:19]}  Nxf6 {[%clk 0:01:17]} 33. exf6+ {[%clk 0:00:20]}  Kd8 {[%clk 0:01:17]} 34. Nf2 {[%clk 0:00:20]}  Ba4 {[%clk 0:01:14]} 35. Qa5 {[%clk 0:00:17]}  Bc6 {[%clk 0:01:12]} 36. Ng4 {[%clk 0:00:17]}  Kc8 {[%clk 0:01:12]} 37. Ne5 {[%clk 0:00:18]}  Be8 {[%clk 0:01:12]} 38. Qb6 {[%clk 0:00:17]}  Rc1 {[%clk 0:01:09]} 39. Qa7 {[%clk 0:00:17]}  Rch1 {[%clk 0:01:07]} 40. Qc5+ {[%clk 0:00:07]}  Kb8 {[%clk 0:01:06]} 41. Bxa6 {[%clk 0:00:05]}  bxa6 {[%clk 0:01:00]} 42. Qb6+ {[%clk 0:00:04]}  Kc8 {[%clk 0:01:01]} 43. Qxa6+ {[%clk 0:00:05]}  Kc7 {[%clk 0:01:01]} 44. Qa7+ {[%clk 0:00:06]}  Kc8 {[%clk 0:01:01]} 45. Qc5+ {[%clk 0:00:06]}  Kb8 {[%clk 0:01:01]} 46. b4 {[%clk 0:00:07]}  R8h2+ {[%clk 0:00:59]} 47. Kf3 {[%clk 0:00:08]}  Rf1+ {[%clk 0:00:57]} 48. Kg3 {[%clk 0:00:07]}  Rhh1 {[%clk 0:00:50]} 49. Qb6+ {[%clk 0:00:06]}  Kc8 {[%clk 0:00:50]} 50. Qa6+ {[%clk 0:00:07]}  Kc7 {[%clk 0:00:51]} 51. Qa7+ {[%clk 0:00:07]}  Kc8 {[%clk 0:00:51]} 52. Qa8+ {[%clk 0:00:07]}  Kc7 {[%clk 0:00:51]} 53. Qxe8 {[%clk 0:00:06]}  Rhg1+ {[%clk 0:00:51]} 54. Kh2 {[%clk 0:00:06]}  Rh1+ {[%clk 0:00:52]} 55. Kg2 {[%clk 0:00:07]}  Rhg1+ {[%clk 0:00:52]} 56. Kh2 {[%clk 0:00:08]}  Rh1+ {[%clk 0:00:53]} 57. Kg2 {[%clk 0:00:08]}  Rhg1+ {[%clk 0:00:54]} 58. Kh2 {[%clk 0:00:09]} 1/2-1/2


[Site "https://www.chess.com"]

[Event "Titled Tuesday Blitz July 25 Late 2023"]
[White "ChessSG1"]
[Black "Voege, Tobias"]
[BlackFideId "1270513"]
[WhiteElo "2415"]
[BlackElo "2634"]
[Result "0-1"]
[Round "6"]
[TimeControl "180+2"]
[Date "2023.07.25"]
[WhiteClock "0:00:00"]
[BlackClock "0:00:13"]
[Board "41"]

1. c4 {[%clk 0:03:00]}  e5 {[%clk 0:02:58]} 2. g3 {[%clk 0:03:00]}  c6 {[%clk 0:02:56]} 3. Nf3 {[%clk 0:03:00]}  e4 {[%clk 0:02:56]} 4. Nd4 {[%clk 0:03:01]}  d5 {[%clk 0:02:56]} 5. d3 {[%clk 0:02:52]}  c5 {[%clk 0:02:53]} 6. Nc2 {[%clk 0:02:45]}  exd3 {[%clk 0:02:49]} 7. Qxd3 {[%clk 0:02:46]}  dxc4 {[%clk 0:02:43]} 8. Qxd8+ {[%clk 0:02:45]}  Kxd8 {[%clk 0:02:44]} 9. Nd2 {[%clk 0:02:44]}  Be6 {[%clk 0:02:41]} 10. Ne3 {[%clk 0:02:44]}  Nc6 {[%clk 0:02:33]} 11. Bg2 {[%clk 0:02:36]}  Kc7 {[%clk 0:02:13]} 12. Ndxc4 {[%clk 0:02:29]}  Nd4 {[%clk 0:02:13]} 13. Na5 {[%clk 0:02:13]}  Rb8 {[%clk 0:02:02]} 14. O-O {[%clk 0:02:02]}  b6 {[%clk 0:01:54]} 15. Nac4 {[%clk 0:01:56]}  Nxe2+ {[%clk 0:01:52]} 16. Kh1 {[%clk 0:01:56]}  Nxc1 {[%clk 0:01:52]} 17. Raxc1 {[%clk 0:01:57]}  Nf6 {[%clk 0:01:50]} 18. b4 {[%clk 0:01:52]}  Be7 {[%clk 0:01:49]} 19. b5 {[%clk 0:01:38]}  Rhd8 {[%clk 0:01:47]} 20. Ne5 {[%clk 0:01:37]}  Rd2 {[%clk 0:01:41]} 21. Nc6 {[%clk 0:01:37]}  Re8 {[%clk 0:01:36]} 22. a4 {[%clk 0:01:37]}  Nd5 {[%clk 0:01:22]} 23. Nxd5+ {[%clk 0:01:21]}  Bxd5 {[%clk 0:01:23]} 24. Nxa7 {[%clk 0:01:21]}  Bxg2+ {[%clk 0:01:20]} 25. Kxg2 {[%clk 0:01:22]}  Ra8 {[%clk 0:01:17]} 26. Nc6 {[%clk 0:01:21]}  Bd6 {[%clk 0:01:18]} 27. Rc4 {[%clk 0:01:18]}  Ra2 {[%clk 0:01:16]} 28. a5 {[%clk 0:01:10]}  bxa5 {[%clk 0:01:16]} 29. Rb1 {[%clk 0:01:10]}  Kb6 {[%clk 0:01:13]} 30. Rd1 {[%clk 0:01:05]}  Bf8 {[%clk 0:01:11]} 31. Ne5 {[%clk 0:00:54]}  f6 {[%clk 0:01:06]} 32. Nd7+ {[%clk 0:00:42]}  Kxb5 {[%clk 0:01:03]} 33. Rc3 {[%clk 0:00:42]}  Rb2 {[%clk 0:00:56]} 34. Rdc1 {[%clk 0:00:35]}  Bd6 {[%clk 0:00:43]} 35. Nxc5 {[%clk 0:00:34]}  Rc8 {[%clk 0:00:32]} 36. Ne4 {[%clk 0:00:20]}  Rxc3 {[%clk 0:00:32]} 37. Nxc3+ {[%clk 0:00:20]}  Kb4 {[%clk 0:00:24]} 38. Nd5+ {[%clk 0:00:20]}  Kb3 {[%clk 0:00:20]} 39. Rc6 {[%clk 0:00:15]}  Be5 {[%clk 0:00:18]} 40. Ra6 {[%clk 0:00:05]}  a4 {[%clk 0:00:16]} 41. Kf3 {[%clk 0:00:03]}  Bd4 {[%clk 0:00:16]} 42. Ke4 {[%clk 0:00:03]}  Bxf2 {[%clk 0:00:16]} 43. Kd3 {[%clk 0:00:01]}  Bc5 {[%clk 0:00:14]} 44. Ra8 {[%clk 0:00:01]}  a3 {[%clk 0:00:13]} 45. Rb8+ {[%clk 0:00:01]}  Ka2 {[%clk 0:00:13]} 46. Nc3+ {[%clk 0:00:01]}  Ka1 {[%clk 0:00:14]} 47. Ra8 {[%clk 0:00:00]}  Rxh2 {[%clk 0:00:13]} 0-1


[Site "https://www.chess.com"]

[Event "Titled Tuesday Blitz July 25 Late 2023"]
[White "Attacker_2006"]
[Black "Caruana, Fabiano"]
[BlackFideId "2020009"]
[WhiteElo "2566"]
[BlackElo "3110"]
[Result "1/2-1/2"]
[Round "6"]
[TimeControl "180+2"]
[Date "2023.07.25"]
[WhiteClock "0:00:12"]
[BlackClock "0:00:28"]
[Board "42"]

1. e4 {[%clk 0:03:00]}  b6 {[%clk 0:02:59]} 2. d4 {[%clk 0:02:59]}  Ba6 {[%clk 0:03:00]} 3. Bxa6 {[%clk 0:02:56]}  Nxa6 {[%clk 0:03:01]} 4. Nf3 {[%clk 0:02:56]}  c6 {[%clk 0:03:01]} 5. O-O {[%clk 0:02:57]}  Nc7 {[%clk 0:03:02]} 6. Nc3 {[%clk 0:02:57]}  g6 {[%clk 0:03:02]} 7. Bf4 {[%clk 0:02:56]}  Bg7 {[%clk 0:03:02]} 8. d5 {[%clk 0:02:56]}  cxd5 {[%clk 0:02:58]} 9. Nxd5 {[%clk 0:02:53]}  Nxd5 {[%clk 0:02:58]} 10. Qxd5 {[%clk 0:02:53]}  Nf6 {[%clk 0:02:56]} 11. Qd3 {[%clk 0:02:52]}  d6 {[%clk 0:02:51]} 12. e5 {[%clk 0:02:53]}  dxe5 {[%clk 0:02:49]} 13. Qxd8+ {[%clk 0:02:46]}  Rxd8 {[%clk 0:02:50]} 14. Bxe5 {[%clk 0:02:46]}  O-O {[%clk 0:02:50]} 15. Rad1 {[%clk 0:02:43]}  Nh5 {[%clk 0:02:49]} 16. Bxg7 {[%clk 0:02:42]}  Kxg7 {[%clk 0:02:49]} 17. Rfe1 {[%clk 0:02:39]}  e6 {[%clk 0:02:47]} 18. g3 {[%clk 0:02:38]}  Nf6 {[%clk 0:02:46]} 19. Kf1 {[%clk 0:02:38]}  Nd5 {[%clk 0:02:44]} 20. c3 {[%clk 0:02:38]}  Kf6 {[%clk 0:02:43]} 21. Ke2 {[%clk 0:02:39]}  h6 {[%clk 0:02:42]} 22. Rd4 {[%clk 0:02:37]}  Ne7 {[%clk 0:02:40]} 23. Red1 {[%clk 0:02:36]}  Rxd4 {[%clk 0:02:39]} 24. Rxd4 {[%clk 0:02:37]}  Nc6 {[%clk 0:02:28]} 25. Rd6 {[%clk 0:02:33]}  Rc8 {[%clk 0:02:27]} 26. Rd7 {[%clk 0:02:25]}  e5 {[%clk 0:02:23]} 27. Ke3 {[%clk 0:02:10]}  Ke6 {[%clk 0:02:22]} 28. Rb7 {[%clk 0:02:10]}  f5 {[%clk 0:02:15]} 29. Rh7 {[%clk 0:02:05]}  Ne7 {[%clk 0:02:12]} 30. Rxh6 {[%clk 0:01:59]}  Kf6 {[%clk 0:02:07]} 31. Rh7 {[%clk 0:01:54]}  b5 {[%clk 0:02:04]} 32. Nxe5 {[%clk 0:01:48]}  b4 {[%clk 0:01:27]} 33. c4 {[%clk 0:01:18]}  g5 {[%clk 0:01:13]} 34. f4 {[%clk 0:01:13]}  gxf4+ {[%clk 0:01:13]} 35. gxf4 {[%clk 0:01:14]}  a5 {[%clk 0:01:06]} 36. Rf7+ {[%clk 0:01:06]}  Ke6 {[%clk 0:01:06]} 37. Rh7 {[%clk 0:01:07]}  Kf6 {[%clk 0:01:02]} 38. Rh6+ {[%clk 0:00:57]}  Kg7 {[%clk 0:01:00]} 39. Ra6 {[%clk 0:00:56]}  Rh8 {[%clk 0:00:59]} 40. Rxa5 {[%clk 0:00:53]}  Rxh2 {[%clk 0:00:58]} 41. Nd3 {[%clk 0:00:48]}  Rh3+ {[%clk 0:00:55]} 42. Kd2 {[%clk 0:00:46]}  Rh2+ {[%clk 0:00:55]} 43. Kd1 {[%clk 0:00:37]}  Rh1+ {[%clk 0:00:52]} 44. Ke2 {[%clk 0:00:38]}  Nc6 {[%clk 0:00:52]} 45. Rd5 {[%clk 0:00:32]}  Rh2+ {[%clk 0:00:51]} 46. Ke3 {[%clk 0:00:31]}  Rh3+ {[%clk 0:00:51]} 47. Kf2 {[%clk 0:00:30]}  Rh2+ {[%clk 0:00:50]} 48. Kg3 {[%clk 0:00:31]}  Rc2 {[%clk 0:00:49]} 49. Rxf5 {[%clk 0:00:26]}  Rxc4 {[%clk 0:00:41]} 50. Rc5 {[%clk 0:00:25]}  Rd4 {[%clk 0:00:41]} 51. Rxc6 {[%clk 0:00:23]}  Rxd3+ {[%clk 0:00:41]} 52. Kg4 {[%clk 0:00:23]}  b3 {[%clk 0:00:40]} 53. axb3 {[%clk 0:00:19]}  Rxb3 {[%clk 0:00:41]} 54. Rc2 {[%clk 0:00:19]}  Kf6 {[%clk 0:00:42]} 55. Rc6+ {[%clk 0:00:19]}  Kf7 {[%clk 0:00:41]} 56. Rc2 {[%clk 0:00:19]}  Kf6 {[%clk 0:00:42]} 57. Rh2 {[%clk 0:00:18]}  Kg6 {[%clk 0:00:30]} 58. f5+ {[%clk 0:00:18]}  Kf6 {[%clk 0:00:29]} 59. Rh6+ {[%clk 0:00:18]}  Kf7 {[%clk 0:00:29]} 60. Kg5 {[%clk 0:00:15]}  Rxb2 {[%clk 0:00:28]} 61. Rh7+ {[%clk 0:00:16]}  Kg8 {[%clk 0:00:28]} 62. Ra7 {[%clk 0:00:16]}  Rb6 {[%clk 0:00:28]} 63. Ra8+ {[%clk 0:00:15]}  Kf7 {[%clk 0:00:28]} 64. Ra7+ {[%clk 0:00:16]}  Kg8 {[%clk 0:00:28]} 65. Rc7 {[%clk 0:00:15]}  Ra6 {[%clk 0:00:28]} 66. Rd7 {[%clk 0:00:14]}  Kf8 {[%clk 0:00:28]} 67. Rh7 {[%clk 0:00:13]}  Kg8 {[%clk 0:00:28]} 68. Re7 {[%clk 0:00:12]}  Kf8 {[%clk 0:00:28]} 69. Re1 {[%clk 0:00:12]}  Kf7 {[%clk 0:00:28]} 70. Rb1 {[%clk 0:00:11]}  Kf8 {[%clk 0:00:28]} 71. Rb7 {[%clk 0:00:11]}  Kg8 {[%clk 0:00:28]} 72. f6 {[%clk 0:00:10]}  Ra1 {[%clk 0:00:27]} 73. Rb8+ {[%clk 0:00:09]}  Kf7 {[%clk 0:00:27]} 74. Rb7+ {[%clk 0:00:10]}  Kf8 {[%clk 0:00:27]} 75. Rh7 {[%clk 0:00:07]}  Rg1+ {[%clk 0:00:26]} 76. Kf5 {[%clk 0:00:08]}  Rf1+ {[%clk 0:00:27]} 77. Kg6 {[%clk 0:00:08]}  Rg1+ {[%clk 0:00:27]} 78. Kf5 {[%clk 0:00:09]}  Rf1+ {[%clk 0:00:28]} 79. Ke5 {[%clk 0:00:09]}  Re1+ {[%clk 0:00:27]} 80. Kd5 {[%clk 0:00:10]}  Kg8 {[%clk 0:00:27]} 81. Re7 {[%clk 0:00:09]}  Rf1 {[%clk 0:00:26]} 82. Ke6 {[%clk 0:00:05]}  Re1+ {[%clk 0:00:25]} 83. Kd7 {[%clk 0:00:04]}  Rf1 {[%clk 0:00:24]} 84. Re6 {[%clk 0:00:02]}  Kf7 {[%clk 0:00:24]} 85. Re7+ {[%clk 0:00:02]}  Kxf6 {[%clk 0:00:24]} 86. Re6+ {[%clk 0:00:03]}  Kf5 {[%clk 0:00:25]} 87. Rd6 {[%clk 0:00:04]}  Ra1 {[%clk 0:00:25]} 88. Rd5+ {[%clk 0:00:04]}  Kf6 {[%clk 0:00:26]} 89. Rd6+ {[%clk 0:00:04]}  Kf7 {[%clk 0:00:27]} 90. Rc6 {[%clk 0:00:05]}  Ra7+ {[%clk 0:00:28]} 91. Rc7 {[%clk 0:00:05]}  Ra1 {[%clk 0:00:28]} 92. Kc6+ {[%clk 0:00:05]}  Kf6 {[%clk 0:00:29]} 93. Rb7 {[%clk 0:00:06]}  Rc1+ {[%clk 0:00:29]} 94. Kb6 {[%clk 0:00:06]}  Ke6 {[%clk 0:00:30]} 95. Rc7 {[%clk 0:00:07]}  Rb1+ {[%clk 0:00:31]} 96. Ka7 {[%clk 0:00:07]}  Kd6 {[%clk 0:00:31]} 97. Rb7 {[%clk 0:00:07]}  Ra1+ {[%clk 0:00:31]} 98. Kb8 {[%clk 0:00:08]}  Kc6 {[%clk 0:00:31]} 99. Rc7+ {[%clk 0:00:08]}  Kd6 {[%clk 0:00:31]} 100. Ra7 {[%clk 0:00:08]}  Rh1 {[%clk 0:00:32]} 101. Ra6+ {[%clk 0:00:09]}  Kd7 {[%clk 0:00:32]} 102. Ra7+ {[%clk 0:00:09]}  Kd8 {[%clk 0:00:32]} 103. Rb7 {[%clk 0:00:09]}  Ra1 {[%clk 0:00:32]} 104. Rb2 {[%clk 0:00:09]}  Kd7 {[%clk 0:00:32]} 105. Rd2+ {[%clk 0:00:10]}  Kc6 {[%clk 0:00:32]} 106. Rc2+ {[%clk 0:00:11]}  Kd5 {[%clk 0:00:32]} 107. Rd2+ {[%clk 0:00:11]}  Kc4 {[%clk 0:00:32]} 108. Rc2+ {[%clk 0:00:11]}  Kd3 {[%clk 0:00:32]} 109. Rc7 {[%clk 0:00:12]}  Kd4 {[%clk 0:00:32]} 110. Rd7+ {[%clk 0:00:13]}  Kc5 {[%clk 0:00:32]} 111. Ra7 {[%clk 0:00:13]}  Rh1 {[%clk 0:00:32]} 112. Rc7+ {[%clk 0:00:14]}  Kd6 {[%clk 0:00:32]} 113. Rc2 {[%clk 0:00:12]}  Rh8+ {[%clk 0:00:31]} 114. Kb7 {[%clk 0:00:12]}  Rh7+ {[%clk 0:00:30]} 115. Kb6 {[%clk 0:00:13]}  Ke5 {[%clk 0:00:30]} 116. Rc7 {[%clk 0:00:12]}  Rxc7 {[%clk 0:00:28]} 117. Kxc7 {[%clk 0:00:12]} 1/2-1/2


[Site "https://www.chess.com"]

[Event "Titled Tuesday Blitz July 25 Late 2023"]
[White "Principe, Alexander"]
[Black "Kushko, Dmitriy"]
[WhiteFideId "3804542"]
[BlackFideId "14162261"]
[WhiteElo "2540"]
[BlackElo "2807"]
[Result "1-0"]
[Round "6"]
[TimeControl "180+2"]
[Date "2023.07.25"]
[WhiteClock "0:00:08"]
[BlackClock "0:00:03"]
[Board "46"]

1. e4 {[%clk 0:03:00]}  c6 {[%clk 0:03:00]} 2. d4 {[%clk 0:02:59]}  d5 {[%clk 0:03:00]} 3. Nc3 {[%clk 0:02:59]}  dxe4 {[%clk 0:03:00]} 4. Nxe4 {[%clk 0:03:00]}  Nf6 {[%clk 0:03:01]} 5. Nxf6+ {[%clk 0:03:00]}  exf6 {[%clk 0:03:02]} 6. c4 {[%clk 0:03:01]}  Bb4+ {[%clk 0:02:57]} 7. Bd2 {[%clk 0:03:00]}  Bxd2+ {[%clk 0:02:48]} 8. Qxd2 {[%clk 0:03:01]}  O-O {[%clk 0:02:48]} 9. O-O-O {[%clk 0:02:58]}  b5 {[%clk 0:02:41]} 10. Nf3 {[%clk 0:02:44]}  bxc4 {[%clk 0:02:35]} 11. Bxc4 {[%clk 0:02:43]}  Nd7 {[%clk 0:02:35]} 12. Kb1 {[%clk 0:02:40]}  a5 {[%clk 0:02:35]} 13. Rhe1 {[%clk 0:02:33]}  a4 {[%clk 0:02:32]} 14. a3 {[%clk 0:02:08]}  Nb6 {[%clk 0:02:32]} 15. Ba2 {[%clk 0:02:08]}  Nd5 {[%clk 0:02:14]} 16. Rc1 {[%clk 0:02:06]}  Qb6 {[%clk 0:02:07]} 17. Ka1 {[%clk 0:02:05]}  Bg4 {[%clk 0:01:43]} 18. Rc5 {[%clk 0:01:57]}  Rfd8 {[%clk 0:01:38]} 19. Rec1 {[%clk 0:01:53]}  Ne7 {[%clk 0:01:30]} 20. Qe2 {[%clk 0:00:57]}  Ra7 {[%clk 0:01:24]} 21. Qe4 {[%clk 0:00:34]}  Rb7 {[%clk 0:01:15]} 22. Rb1 {[%clk 0:00:28]}  Bc8 {[%clk 0:00:46]} 23. g4 {[%clk 0:00:25]}  Nd5 {[%clk 0:00:29]} 24. g5 {[%clk 0:00:23]}  Be6 {[%clk 0:00:27]} 25. gxf6 {[%clk 0:00:20]}  Nxf6 {[%clk 0:00:27]} 26. Qc2 {[%clk 0:00:20]}  Bd5 {[%clk 0:00:16]} 27. Ne5 {[%clk 0:00:15]}  g6 {[%clk 0:00:08]} 28. f3 {[%clk 0:00:15]}  Rdb8 {[%clk 0:00:08]} 29. Nxc6 {[%clk 0:00:11]}  Bxc6 {[%clk 0:00:08]} 30. Rxc6 {[%clk 0:00:12]}  Qxd4 {[%clk 0:00:09]} 31. Qc3 {[%clk 0:00:11]}  Qxc3 {[%clk 0:00:06]} 32. Rxc3 {[%clk 0:00:12]}  Kg7 {[%clk 0:00:06]} 33. Bc4 {[%clk 0:00:12]}  Rc7 {[%clk 0:00:05]} 34. Rbc1 {[%clk 0:00:11]}  Rcb7 {[%clk 0:00:05]} 35. R1c2 {[%clk 0:00:11]}  Nd7 {[%clk 0:00:06]} 36. Bd3 {[%clk 0:00:10]}  Ne5 {[%clk 0:00:05]} 37. Be2 {[%clk 0:00:11]}  g5 {[%clk 0:00:03]} 38. Rc5 {[%clk 0:00:10]}  f6 {[%clk 0:00:04]} 39. Rc7+ {[%clk 0:00:09]}  Kh6 {[%clk 0:00:04]} 40. R7c3 {[%clk 0:00:09]}  Ng6 {[%clk 0:00:04]} 41. Bd3 {[%clk 0:00:09]}  Nf4 {[%clk 0:00:04]} 42. Be4 {[%clk 0:00:09]}  Rb5 {[%clk 0:00:04]} 43. Rc7 {[%clk 0:00:10]}  f5 {[%clk 0:00:04]} 44. R7c6+ {[%clk 0:00:07]}  Ng6 {[%clk 0:00:04]} 45. Bd3 {[%clk 0:00:06]}  Rb3 {[%clk 0:00:05]} 46. R6c3 {[%clk 0:00:06]}  R3b6 {[%clk 0:00:04]} 47. Bxf5 {[%clk 0:00:05]}  Nf4 {[%clk 0:00:04]} 48. Be4 {[%clk 0:00:05]}  Kh5 {[%clk 0:00:03]} 49. Ka2 {[%clk 0:00:06]}  h6 {[%clk 0:00:04]} 50. Rc5 {[%clk 0:00:07]}  Kh4 {[%clk 0:00:04]} 51. R5c4 {[%clk 0:00:07]}  Ra6 {[%clk 0:00:04]} 52. Rb4 {[%clk 0:00:06]}  Rd8 {[%clk 0:00:03]} 53. Rbc4 {[%clk 0:00:06]}  Ne6 {[%clk 0:00:03]} 54. Rc6 {[%clk 0:00:07]}  Rxc6 {[%clk 0:00:03]} 55. Rxc6 {[%clk 0:00:07]}  Nd4 {[%clk 0:00:03]} 56. Rxh6# {[%clk 0:00:08]} 1-0


[Site "https://www.chess.com"]

[Event "Titled Tuesday Blitz July 25 Late 2023"]
[White "Przybylski, Wojciech"]
[Black "Fiorito, Joaquin"]
[WhiteFideId "1117599"]
[BlackFideId "180173"]
[WhiteElo "2540"]
[BlackElo "2786"]
[Result "1-0"]
[Round "6"]
[TimeControl "180+2"]
[Date "2023.07.25"]
[WhiteClock "0:00:49"]
[BlackClock "0:01:10"]
[Board "47"]

1. d4 {[%clk 0:03:00]}  Nf6 {[%clk 0:02:59]} 2. Nf3 {[%clk 0:03:00]}  d5 {[%clk 0:02:59]} 3. g3 {[%clk 0:02:58]}  Bf5 {[%clk 0:02:59]} 4. Bg2 {[%clk 0:02:58]}  e6 {[%clk 0:02:59]} 5. O-O {[%clk 0:02:58]}  h6 {[%clk 0:02:59]} 6. Nbd2 {[%clk 0:02:57]}  Be7 {[%clk 0:02:59]} 7. Re1 {[%clk 0:02:57]}  O-O {[%clk 0:02:59]} 8. Nh4 {[%clk 0:02:54]}  Bh7 {[%clk 0:02:59]} 9. c4 {[%clk 0:02:53]}  c6 {[%clk 0:02:58]} 10. b3 {[%clk 0:02:46]}  a5 {[%clk 0:02:58]} 11. e4 {[%clk 0:02:43]}  dxe4 {[%clk 0:02:56]} 12. Nxe4 {[%clk 0:02:42]}  Nxe4 {[%clk 0:02:55]} 13. Bxe4 {[%clk 0:02:42]}  Bxh4 {[%clk 0:02:55]} 14. Bxh7+ {[%clk 0:02:32]}  Kxh7 {[%clk 0:02:56]} 15. Qd3+ {[%clk 0:02:21]}  Kh8 {[%clk 0:02:54]} 16. gxh4 {[%clk 0:02:20]}  Qxh4 {[%clk 0:02:55]} 17. Re4 {[%clk 0:02:20]}  Qh5 {[%clk 0:02:49]} 18. Kh1 {[%clk 0:02:09]}  Nd7 {[%clk 0:02:48]} 19. Ba3 {[%clk 0:02:01]}  Rfd8 {[%clk 0:02:44]} 20. Rg1 {[%clk 0:01:58]}  Nf6 {[%clk 0:02:36]} 21. Rf4 {[%clk 0:01:56]}  e5 {[%clk 0:02:24]} 22. Rxf6 {[%clk 0:01:53]}  gxf6 {[%clk 0:02:16]} 23. Be7 {[%clk 0:01:52]}  Qh4 {[%clk 0:02:07]} 24. Qf5 {[%clk 0:01:42]}  Rd6 {[%clk 0:01:42]} 25. Bxd6 {[%clk 0:01:38]}  Rg8 {[%clk 0:01:39]} 26. dxe5 {[%clk 0:01:25]}  Rxg1+ {[%clk 0:01:35]} 27. Kxg1 {[%clk 0:01:24]}  Qd4 {[%clk 0:01:30]} 28. Qxf6+ {[%clk 0:01:15]}  Kg8 {[%clk 0:01:31]} 29. Qf3 {[%clk 0:01:04]}  a4 {[%clk 0:01:25]} 30. Kg2 {[%clk 0:01:02]}  axb3 {[%clk 0:01:21]} 31. axb3 {[%clk 0:01:01]}  b5 {[%clk 0:01:18]} 32. cxb5 {[%clk 0:01:00]}  cxb5 {[%clk 0:01:18]} 33. b4 {[%clk 0:00:58]}  Qc4 {[%clk 0:01:17]} 34. h3 {[%clk 0:00:56]}  Kh7 {[%clk 0:01:15]} 35. Qf5+ {[%clk 0:00:55]}  Kg8 {[%clk 0:01:15]} 36. Qg4+ {[%clk 0:00:54]}  Kh7 {[%clk 0:01:12]} 37. Qxc4 {[%clk 0:00:49]}  bxc4 {[%clk 0:01:10]} 38. b5 {[%clk 0:00:49]} 1-0


[Site "https://www.chess.com"]

[Event "Titled Tuesday Blitz July 25 Late 2023"]
[White "Morefield, Jason"]
[Black "Kochiev, Ivan"]
[WhiteFideId "30920825"]
[BlackFideId "2917890"]
[WhiteElo "2754"]
[BlackElo "2529"]
[Result "0-1"]
[Round "6"]
[TimeControl "180+2"]
[Date "2023.07.25"]
[WhiteClock "0:00:14"]
[BlackClock "0:00:15"]
[Board "50"]

1. a3 {[%clk 0:02:54]}  d5 {[%clk 0:02:56]} 2. Nf3 {[%clk 0:02:54]}  Nf6 {[%clk 0:02:55]} 3. g3 {[%clk 0:02:53]}  Bf5 {[%clk 0:02:55]} 4. Bg2 {[%clk 0:02:53]}  e6 {[%clk 0:02:55]} 5. O-O {[%clk 0:02:54]}  c5 {[%clk 0:02:56]} 6. d3 {[%clk 0:02:53]}  Nc6 {[%clk 0:02:56]} 7. Qe1 {[%clk 0:02:53]}  Be7 {[%clk 0:02:55]} 8. Nbd2 {[%clk 0:02:51]}  h6 {[%clk 0:02:53]} 9. e4 {[%clk 0:02:51]}  Bh7 {[%clk 0:02:53]} 10. Qe2 {[%clk 0:02:43]}  O-O {[%clk 0:02:53]} 11. Re1 {[%clk 0:02:43]}  Qc7 {[%clk 0:02:48]} 12. e5 {[%clk 0:02:38]}  Nd7 {[%clk 0:02:47]} 13. Nf1 {[%clk 0:02:38]}  Nd4 {[%clk 0:02:38]} 14. Nxd4 {[%clk 0:02:36]}  cxd4 {[%clk 0:02:35]} 15. Bf4 {[%clk 0:02:31]}  Rac8 {[%clk 0:02:33]} 16. Rac1 {[%clk 0:02:28]}  Qb6 {[%clk 0:02:26]} 17. b4 {[%clk 0:02:09]}  Rc3 {[%clk 0:02:25]} 18. Nd2 {[%clk 0:02:00]}  Rxa3 {[%clk 0:02:17]} 19. Rb1 {[%clk 0:02:00]}  Rc8 {[%clk 0:02:14]} 20. Nf3 {[%clk 0:01:57]}  Ra2 {[%clk 0:02:01]} 21. Rec1 {[%clk 0:01:54]}  Bxb4 {[%clk 0:01:37]} 22. Bd2 {[%clk 0:01:52]}  a5 {[%clk 0:01:36]} 23. Bxb4 {[%clk 0:01:46]}  axb4 {[%clk 0:01:36]} 24. Qd2 {[%clk 0:01:42]}  Rc3 {[%clk 0:01:26]} 25. Qf4 {[%clk 0:01:37]}  Rcxc2 {[%clk 0:00:46]} 26. Rxc2 {[%clk 0:01:35]}  Rxc2 {[%clk 0:00:47]} 27. Nxd4 {[%clk 0:01:26]}  Rc3 {[%clk 0:00:38]} 28. Ra1 {[%clk 0:00:57]}  g5 {[%clk 0:00:16]} 29. Ra8+ {[%clk 0:00:30]}  Kg7 {[%clk 0:00:17]} 30. Qg4 {[%clk 0:00:17]}  Nxe5 {[%clk 0:00:15]} 31. Qe2 {[%clk 0:00:14]}  Qxd4 {[%clk 0:00:15]} 0-1


[Site "https://www.chess.com"]